bitfinex-derivatives/quotes_BTCF0:USTF0_20241020
["timestamp","ask_amount","ask_price","bid_price","bid_amount"]
[1729432405279,0.073042,68457.0,68456.0,0.05818614]
[1729432405479,0.0327,68466.0,68456.0,0.05818614]
[1729432405480,0.00076,68470.0,68456.0,0.02656993]
[1729432405684,0.3608,68482.0,68475.0,0.073022]
[1729432405981,0.0002,68492.0,68481.0,0.3608]
[1729432406175,0.0002,68492.0,68491.0,0.433805]
[1729432406375,0.0002,68492.0,68491.0,0.50644904]
[1729432406686,0.0002,68492.0,68491.0,0.40428299]
[1729432406872,0.0002,68492.0,68491.0,0.3608]
[1729432407570,0.073204,68492.0,68485.0,0.03871053]
[1729432407776,0.073204,68492.0,68483.0,0.0908]
[1729432407777,0.3608,68487.0,68483.0,0.0908]
[1729432407982,0.3608,68487.0,68481.0,0.073016]
[1729432408182,0.3608,68487.0,68482.0,0.073015]
[1729432409085,0.3608,68487.0,68483.0,0.073014]
[1729432409782,0.3608,68487.0,68481.0,0.02687781]
[1729432410084,0.3608,68487.0,68484.0,0.073013]
[1729432411286,0.3608,68487.0,68485.0,0.073012]
[1729432414686,0.3608,68487.0,68486.0,0.073011]
[1729432415487,0.3608,68487.0,68482.0,0.073014]
[1729432415790,0.43381,68487.0,68482.0,0.073014]
[1729432417392,0.43381,68487.0,68483.0,0.073014]
[1729432417788,0.3608,68487.0,68483.0,0.073014]
[1729432418681,1.5,68486.0,68483.0,0.073014]
[1729432418888,1.5,68486.0,68485.0,0.073012]
[1729432419087,0.3608,68487.0,68485.0,0.073012]
[1729432419798,1.8608,68487.0,68485.0,0.073012]
[1729432420296,0.073007,68490.0,68485.0,0.073012]
[1729432420803,1.5,68489.0,68485.0,0.073012]
[1729432421391,0.073007,68490.0,68485.0,0.073012]
[1729432421791,0.3608,68487.0,68485.0,0.073012]
[1729432423510,0.3608,68487.0,68486.0,0.073011]
[1729432424313,0.0313,68491.0,68486.0,0.3608]
[1729432424611,0.0313,68491.0,68488.0,0.073008]
[1729432425401,0.0002,68492.0,68479.0,0.3608]
[1729432425608,0.0002,68492.0,68485.0,0.3608]
[1729432426309,0.3608,68491.0,68484.0,0.073013]
[1729432426518,0.0305,68490.0,68484.0,0.073013]
[1729432431519,0.0305,68490.0,68480.0,0.12594]
[1729432431520,0.0305,68490.0,68485.0,0.073012]
[1729432433719,0.073014,68483.0,68479.0,0.3608]
[1729432433921,0.073014,68483.0,68479.0,0.02687951]
[1729432434111,0.073014,68483.0,68476.0,0.0625]
[1729432434510,0.073014,68483.0,68476.0,0.12046809]
[1729432435215,1.5305,68490.0,68476.0,0.12046809]
[1729432435525,0.073009,68488.0,68479.0,0.05796809]
[1729432436113,0.073009,68488.0,68479.0,0.13098609]
[1729432436422,0.073009,68488.0,68480.0,0.05796809]
[1729432437526,0.073009,68488.0,68479.0,0.073018]
[1729432437723,0.073009,68488.0,68479.0,0.13098609]
[1729432438022,0.07301,68487.0,68480.0,0.073017]
[1729432438613,0.07301,68487.0,68481.0,0.05796809]
[1729432438813,0.07301,68487.0,68481.0,0.13098409]
[1729432439214,0.3608,68484.0,68480.0,0.05796809]
[1729432439517,0.3608,68484.0,68483.0,0.073014]
[1729432440319,0.3608,68484.0,68481.0,0.05796809]
[1729432440716,0.3608,68484.0,68481.0,0.13098409]
[1729432440923,0.3608,68484.0,68481.0,0.073016]
[1729432441311,0.3608,68484.0,68478.0,0.05796809]
[1729432441725,0.3608,68484.0,68478.0,0.13098709]
[1729432442221,0.3608,68484.0,68478.0,0.073019]
[1729432443023,0.3608,68484.0,68479.0,0.073018]
[1729432443333,0.433813,68484.0,68479.0,0.073018]
[1729432443621,0.073017,68481.0,68476.0,0.032]
[1729432443821,0.43382,68478.0,68476.0,0.032]
[1729432448332,0.073024,68474.0,68471.0,0.00144]
[1729432448525,0.433826,68472.0,68467.0,0.073031]
[1729432451632,0.3608,68472.0,68466.0,0.02689261]
[1729432451845,0.3608,68472.0,68469.0,0.073029]
[1729432456938,0.3608,68472.0,68463.0,0.05796809]
[1729432457334,0.3608,68472.0,68464.0,0.073034]
[1729432457642,0.3608,68472.0,68469.0,0.073029]
[1729432457940,0.073024,68474.0,68469.0,0.073029]
[1729432459440,0.02574281,68476.0,68471.0,0.073026]
[1729432459635,0.073023,68475.0,68471.0,0.073026]
[1729432469045,0.073023,68475.0,68472.0,0.073026]
[1729432471948,0.073023,68475.0,68469.0,0.02650317]
[1729432472144,0.073023,68475.0,68474.0,0.073024]
[1729432477658,0.05888232,68477.0,68476.0,0.073021]
[1729432479863,0.3608,68478.0,68477.0,0.07302]
[1729432480848,0.3608,68478.0,68477.0,0.09997426]
[1729432481357,0.103112,68485.0,68480.0,0.073016]
[1729432481567,0.103112,68485.0,68481.0,0.073016]
[1729432481753,0.103112,68485.0,68475.0,0.0654]
[1729432481961,0.103112,68485.0,68476.0,0.073021]
[1729432482163,0.103112,68485.0,68482.0,0.073014]
[1729432482465,0.103112,68485.0,68483.0,0.073014]
[1729432482962,0.03576095,68484.0,68483.0,0.073014]
[1729432484155,0.0301,68485.0,68483.0,0.073014]
[1729432485052,0.0301,68485.0,68475.0,0.09111783]
[1729432485455,0.0301,68485.0,68476.0,0.073021]
[1729432485661,0.0301,68485.0,68475.0,0.09111783]
[1729432486363,0.0301,68485.0,68484.0,0.073013]
[1729432487269,0.06586043,68485.0,68484.0,0.073013]
[1729432490172,0.13887243,68485.0,68484.0,0.073013]
[1729432490863,0.103112,68485.0,68484.0,0.073013]
[1729432502175,0.0301,68485.0,68479.0,0.073017]
[1729432502369,0.0301,68485.0,68475.0,0.0654]
[1729432502876,0.07302,68478.0,68475.0,0.0654]
[1729432503077,0.07302,68478.0,68476.0,0.073021]
[1729432503284,0.07302,68477.0,68476.0,0.073021]
[1729432504681,0.07302,68477.0,68475.0,0.0654]
[1729432504873,0.7216,68481.0,68463.0,0.12532]
[1729432505075,0.073027,68471.0,68466.0,0.073032]
[1729432506585,0.073028,68470.0,68466.0,0.073032]
[1729432508990,0.073028,68470.0,68467.0,0.07303]
[1729432510273,0.073028,68470.0,68468.0,0.07303]
[1729432514287,0.3608,68472.0,68469.0,0.073029]
[1729432514979,0.3608,68472.0,68470.0,0.073027]
[1729432515174,0.3608,68472.0,68471.0,0.073027]
[1729432521797,0.3608,68472.0,68471.0,0.09930215]
[1729432523795,0.433826,68472.0,68471.0,0.09930215]
[1729432532795,0.433826,68472.0,68471.0,0.073027]
[1729432533288,0.3608,68472.0,68471.0,0.073027]
[1729432535795,0.39656705,68472.0,68471.0,0.073027]
[1729432538700,0.39656674,68472.0,68471.0,0.073027]
[1729432539501,0.3608,68472.0,68471.0,0.073027]
[1729432540801,0.073022,68476.0,68475.0,0.073022]
[1729432541099,0.10878793,68476.0,68475.0,0.073022]
[1729432542107,0.10878868,68476.0,68475.0,0.073022]
[1729432542802,0.073022,68476.0,68475.0,0.073022]
[1729432550906,0.10878816,68476.0,68475.0,0.073022]
[1729432552605,0.46958816,68476.0,68475.0,0.073022]
[1729432554518,0.10878816,68476.0,68475.0,0.073022]
[1729432554720,0.46958816,68476.0,68475.0,0.073022]
[1729432556416,0.433822,68476.0,68475.0,0.073022]
[1729432556617,0.46958837,68476.0,68475.0,0.073022]
[1729432557921,0.433822,68476.0,68475.0,0.073022]
[1729432558717,0.073022,68476.0,68475.0,0.073022]
[1729432562527,0.433822,68476.0,68475.0,0.073022]
[1729432571130,0.433822,68476.0,68475.0,0.11662405]
[1729432571323,0.3608,68476.0,68475.0,0.11662405]
[1729432571730,0.3608,68476.0,68475.0,0.073022]
[1729432574830,0.39656551,68476.0,68475.0,0.073022]
[1729432575236,0.46958651,68476.0,68475.0,0.073022]
[1729432579027,0.46958744,68476.0,68475.0,0.073022]
[1729432579349,0.433821,68476.0,68475.0,0.073022]
[1729432580029,0.3608,68476.0,68475.0,0.073022]
[1729432580332,0.0054,68483.0,68481.0,0.073016]
[1729432580333,0.3608,68482.0,68481.0,0.073016]
[1729432580628,0.3965648,68482.0,68481.0,0.073016]
[1729432581031,0.3608,68482.0,68481.0,0.11669156]
[1729432581234,0.3608,68482.0,68481.0,0.11665945]
[1729432582129,0.3608,68482.0,68481.0,0.073016]
[1729432589231,0.0054,68483.0,68476.0,0.0939]
[1729432589437,0.0054,68483.0,68482.0,0.073015]
[1729432591931,0.078411,68486.0,68476.0,0.0939]
[1729432592132,0.03576084,68485.0,68483.0,0.073013]
[1729432592336,0.439211,68486.0,68483.0,0.073013]
[1729432592627,0.03576087,68485.0,68483.0,0.073013]
[1729432592827,0.439211,68486.0,68483.0,0.073013]
[1729432593030,0.03576096,68485.0,68476.0,0.0939]
[1729432593231,0.439211,68486.0,68484.0,0.073013]
[1729432594039,0.439211,68486.0,68476.0,0.0939]
[1729432594241,0.439211,68486.0,68485.0,0.073012]
[1729432594537,0.47497196,68486.0,68485.0,0.073012]
[1729432594844,0.073016,68481.0,68478.0,0.073019]
[1729432598233,0.073016,68481.0,68476.0,0.13754345]
[1729432598535,0.073017,68480.0,68476.0,0.21056445]
[1729432600240,0.3662,68486.0,68476.0,0.21056445]
[1729432600241,0.073018,68479.0,68476.0,0.166921]
[1729432601147,0.073018,68479.0,68477.0,0.07302]
[1729432604935,0.073018,68479.0,68478.0,0.073019]
[1729432609242,0.073015,68483.0,68479.0,0.073018]
[1729432609438,0.073015,68483.0,68476.0,0.0939]
[1729432609754,0.073015,68483.0,68482.0,0.073015]
[1729432609948,0.10877584,68483.0,68482.0,0.073015]
[1729432610353,0.073016,68482.0,68478.0,0.073019]
[1729432610653,0.073016,68482.0,68479.0,0.073017]
[1729432611049,0.073016,68482.0,68481.0,0.04364345]
[1729432614146,0.0054,68484.0,68481.0,0.04364345]
[1729432614351,0.078413,68484.0,68483.0,0.073014]
[1729432617957,0.3662,68484.0,68480.0,0.073016]
[1729432618152,0.073016,68481.0,68480.0,0.073016]
[1729432621766,0.078416,68481.0,68480.0,0.073016]
[1729432623372,0.0054,68481.0,68476.0,0.0633]
[1729432623564,0.073019,68479.0,68476.0,0.0633]
[1729432623758,0.0054,68481.0,68475.0,0.04364345]
[1729432623957,0.43382,68477.0,68476.0,0.04364345]
[1729432624158,0.073021,68476.0,68475.0,0.11666545]
[1729432625268,0.3608,68477.0,68476.0,0.073021]
[1729432626662,0.0054,68481.0,68476.0,0.433821]
[1729432626871,0.0054,68481.0,68480.0,0.073017]
[1729432627463,0.0054,68482.0,68478.0,0.0313]
[1729432627762,0.0054,68482.0,68481.0,0.073016]
[1729432632974,0.0054,68482.0,68481.0,0.09941093]
[1729432633174,0.0054,68482.0,68481.0,0.14305438]
[1729432634373,0.0054,68482.0,68481.0,0.09941093]
[1729432634673,0.0054,68482.0,68481.0,0.14305438]
[1729432634875,0.0054,68482.0,68481.0,0.09941093]
[1729432641387,0.0054,68482.0,68481.0,0.073016]
[1729432644401,0.0054,68482.0,68481.0,0.11665945]
[1729432644584,0.0054,68482.0,68481.0,0.073016]
[1729432645193,0.0054,68482.0,68478.0,0.02583757]
[1729432645493,0.073018,68479.0,68478.0,0.02583757]
[1729432646083,0.073018,68479.0,68472.0,0.073025]
[1729432646084,0.073018,68479.0,68473.0,0.073024]
[1729432646892,0.073018,68479.0,68474.0,0.073023]
[1729432647389,0.073018,68479.0,68475.0,0.073022]
[1729432647883,1.53096,68481.0,68473.0,0.04364345]
[1729432648079,1.5302,68481.0,68477.0,0.07302]
[1729432648495,1.603216,68481.0,68477.0,0.07302]
[1729432649300,0.0302,68481.0,68480.0,0.073017]
[1729432650579,0.0302,68481.0,68471.0,0.0324]
[1729432650784,0.3608,68476.0,68474.0,0.073023]
[1729432650991,0.3608,68476.0,68475.0,0.073022]
[1729432652888,0.103216,68481.0,68475.0,0.073022]
[1729432653792,0.103216,68481.0,68471.0,0.0324]
[1729432653996,0.103216,68481.0,68476.0,0.073021]
[1729432654503,0.103216,68481.0,68471.0,0.0324]
[1729432655096,0.103216,68481.0,68477.0,0.07302]
[1729432655388,1.5,68480.0,68477.0,0.07302]
[1729432655586,0.103216,68481.0,68477.0,0.07302]
[1729432655795,0.103216,68481.0,68471.0,0.0324]
[1729432655796,0.103216,68481.0,68479.0,0.073018]
[1729432656200,1.603216,68481.0,68479.0,0.073018]
[1729432657299,1.608616,68481.0,68479.0,0.073018]
[1729432658599,0.073017,68480.0,68479.0,0.073018]
[1729432659392,1.53636,68481.0,68480.0,0.073017]
[1729432659694,0.0356,68481.0,68480.0,0.073017]
[1729432666200,0.0054,68481.0,68480.0,0.073017]
[1729432669009,0.0054,68482.0,68481.0,0.073016]
[1729432671004,0.078415,68482.0,68481.0,0.073016]
[1729432672506,0.0054,68482.0,68481.0,0.073016]
[1729432673303,0.078415,68482.0,68481.0,0.073016]
[1729432676602,0.0054,68482.0,68481.0,0.073016]
[1729432677019,0.0054,68482.0,68481.0,0.11665945]
[1729432677404,0.0054,68482.0,68481.0,0.073016]
[1729432686507,0.0054,68482.0,68481.0,0.11665945]
[1729432686716,0.073011,68486.0,68477.0,0.44703653]
[1729432686717,0.0054,68485.0,68480.0,0.04364345]
[1729432686911,0.0054,68485.0,68484.0,0.073013]
[1729432692620,0.0054,68487.0,68481.0,0.04364345]
[1729432692818,0.0054,68487.0,68486.0,0.073011]
[1729432693320,0.04115962,68487.0,68486.0,0.073011]
[1729432694218,0.04115908,68487.0,68486.0,0.073011]
[1729432694423,0.0054,68487.0,68486.0,0.073011]
[1729432694610,0.11416891,68487.0,68486.0,0.073011]
[1729432700507,0.07841,68487.0,68486.0,0.073011]
[1729432700706,0.11416986,68487.0,68486.0,0.073011]
[1729432701521,0.07841,68487.0,68486.0,0.073011]
[1729432703025,0.43921,68487.0,68486.0,0.073011]
[1729432706821,0.07841,68487.0,68486.0,0.073011]
[1729432707115,0.43921,68487.0,68486.0,0.073011]
[1729432716418,0.47496995,68487.0,68486.0,0.073011]
[1729432717928,0.51979319,68487.0,68486.0,0.073011]
[1729432720030,0.51979397,68487.0,68486.0,0.073011]
[1729432720730,0.47497055,68487.0,68486.0,0.073011]
[1729432720933,0.51979385,68487.0,68486.0,0.073011]
[1729432721435,0.47497055,68487.0,68486.0,0.073011]
[1729432723525,0.43921,68487.0,68486.0,0.073011]
[1729432738436,0.51979497,68487.0,68486.0,0.073011]
[1729432739437,0.51979467,68487.0,68486.0,0.073011]
[1729432743845,0.47497086,68487.0,68486.0,0.073011]
[1729432746441,0.43921,68487.0,68486.0,0.073011]
[1729432750443,0.43921,68487.0,68481.0,0.0331]
[1729432750444,0.073015,68483.0,68482.0,0.073015]
[1729432751842,0.078415,68483.0,68482.0,0.073015]
[1729432752549,0.439215,68483.0,68482.0,0.073015]
[1729432753439,1.97497707,68483.0,68482.0,0.073015]
[1729432754449,0.47497707,68483.0,68482.0,0.073015]
[1729432757346,0.40196155,68483.0,68482.0,0.073015]
[1729432757739,0.47497555,68483.0,68482.0,0.073015]
[1729432759949,0.40196155,68483.0,68482.0,0.073015]
[1729432760857,0.40196098,68483.0,68482.0,0.073015]
[1729432761444,0.3662,68483.0,68482.0,0.073015]
[1729432766857,0.0054,68483.0,68482.0,0.073015]
[1729432768954,0.04116017,68483.0,68482.0,0.073015]
[1729432770265,1.54116017,68483.0,68482.0,0.073015]
[1729432770652,0.04116017,68483.0,68482.0,0.073015]
[1729432770852,0.3608,68490.0,68489.0,0.073008]
[1729432771059,0.3965587,68490.0,68489.0,0.073008]
[1729432772761,0.0357587,68490.0,68489.0,0.073008]
[1729432773364,1.573762,68494.0,68484.0,0.073013]
[1729432773561,0.03575573,68493.0,68492.0,0.073004]
[1729432776569,1.573762,68494.0,68484.0,0.04359505]
[1729432776868,1.573002,68494.0,68493.0,0.073003]
[1729432778060,0.073002,68494.0,68493.0,0.073003]
[1729432780960,0.3608,68496.0,68495.0,0.073001]
[1729432781962,0.4338,68496.0,68495.0,0.073001]
[1729432783559,1.5008,68497.0,68495.0,0.073001]
[1729432783764,1.5,68497.0,68496.0,0.073]
[1729432784470,0.072998,68498.0,68497.0,0.072999]
[1729432784773,1.572998,68498.0,68497.0,0.072999]
[1729432785165,1.933798,68498.0,68497.0,0.072999]
[1729432789579,1.8608,68498.0,68497.0,0.072999]
[1729432790564,1.89655482,68498.0,68497.0,0.072999]
[1729432790973,1.89655481,68498.0,68497.0,0.072999]
[1729432794277,0.39655481,68498.0,68497.0,0.072999]
[1729432795777,0.3608,68498.0,68497.0,0.072999]
[1729432797571,0.02585033,68503.0,68502.0,0.072994]
[1729432797772,0.072992,68504.0,68494.0,0.0306]
[1729432797969,0.072992,68504.0,68503.0,0.072993]
[1729432798171,0.10874479,68504.0,68503.0,0.072993]
[1729432798684,0.072992,68504.0,68503.0,0.072993]
[1729432799976,0.09943665,68504.0,68503.0,0.072993]
[1729432800678,1.8917,68505.0,68494.0,0.05688422]
[1729432800979,1.8917,68505.0,68504.0,0.072992]
[1729432801173,0.3608,68505.0,68504.0,0.072992]
[1729432801572,0.0002,68506.0,68505.0,0.072991]
[1729432801771,0.0002,68506.0,68505.0,0.572911]
[1729432805683,0.0002,68506.0,68505.0,0.933711]
[1729432805880,0.3608,68513.0,68512.0,0.072983]
[1729432806091,0.39654714,68513.0,68512.0,0.072983]
[1729432806286,0.3608,68513.0,68512.0,0.072983]
[1729432806487,0.39654735,68513.0,68512.0,0.072983]
[1729432806692,0.03574735,68513.0,68512.0,0.072983]
[1729432807083,0.0006,68514.0,68513.0,0.072982]
[1729432808174,0.073581,68514.0,68513.0,0.072982]
[1729432809490,0.0006,68514.0,68513.0,0.072982]
[1729432810080,0.0315,68514.0,68513.0,0.072982]
[1729432810986,0.104481,68514.0,68513.0,0.072982]
[1729432811585,0.14022688,68514.0,68513.0,0.072982]
[1729432812489,0.104481,68514.0,68513.0,0.072982]
[1729432813989,0.0315,68514.0,68513.0,0.072982]
[1729432814384,0.104481,68514.0,68513.0,0.072982]
[1729432815194,0.0315,68514.0,68513.0,0.072982]
[1729432817495,0.104481,68514.0,68513.0,0.072982]
[1729432817897,0.0315,68514.0,68513.0,0.072982]
[1729432822300,0.0315,68514.0,68513.0,0.09989101]
[1729432824095,0.0315,68514.0,68513.0,0.072982]
[1729432826201,0.0006,68514.0,68513.0,0.072982]
[1729432830399,0.03634396,68514.0,68513.0,0.072982]
[1729432830604,0.0006,68514.0,68513.0,0.072982]
[1729432834301,0.03634383,68514.0,68513.0,0.072982]
[1729432834502,0.0006,68514.0,68513.0,0.072982]
[1729432839125,0.0004,68516.0,68515.0,0.07298]
[1729432839414,0.0004,68516.0,68515.0,0.11650098]
[1729432839611,0.0004,68516.0,68515.0,0.07298]
[1729432840401,0.0004,68516.0,68515.0,0.11648694]
[1729432841016,0.0004,68516.0,68515.0,0.07298]
[1729432841412,0.0004,68516.0,68515.0,0.08484635]
[1729432841614,0.0004,68518.0,68517.0,0.072978]
[1729432841808,0.0014,68519.0,68518.0,0.072977]
[1729432842012,0.0004,68523.0,68520.0,0.072975]
[1729432842204,0.0004,68523.0,68520.0,0.47726187]
[1729432842410,0.0004,68523.0,68520.0,0.433775]
[1729432843417,0.0004,68523.0,68520.0,0.531375]
[1729432843609,0.0004,68523.0,68520.0,0.433775]
[1729432843915,0.0004,68523.0,68520.0,0.531375]
[1729432844711,0.0004,68523.0,68520.0,0.433775]
[1729432844916,0.0004,68523.0,68520.0,0.531375]
[1729432845918,0.0004,68523.0,68520.0,0.55725669]
[1729432847428,0.0004,68523.0,68520.0,0.45965669]
[1729432847721,0.0004,68523.0,68520.0,0.55793669]
[1729432855916,0.0004,68523.0,68520.0,0.45965669]
[1729432859222,0.0004,68523.0,68520.0,0.09885669]
[1729432860928,0.3616,68521.0,68520.0,0.072975]
[1729432861231,1.8616,68521.0,68520.0,0.072975]
[1729432862328,0.0008,68521.0,68520.0,0.072975]
[1729432863334,0.03654309,68521.0,68520.0,0.072975]
[1729432866022,0.0008,68521.0,68520.0,0.072975]
[1729432867929,0.073773,68521.0,68520.0,0.072975]
[1729432877941,0.0008,68521.0,68520.0,0.072975]
[1729432881042,0.0365431,68521.0,68520.0,0.072975]
[1729432882832,0.0008,68521.0,68520.0,0.072975]
[1729432883437,0.0008,68521.0,68520.0,0.09939979]
[1729432884441,0.0008,68521.0,68520.0,0.072975]
[1729432885641,0.03654278,68521.0,68520.0,0.072975]
[1729432886235,0.0008,68521.0,68520.0,0.072975]
[1729432887038,0.0365428,68521.0,68520.0,0.072975]
[1729432887548,0.1095158,68521.0,68520.0,0.072975]
[1729432889146,0.073773,68521.0,68520.0,0.072975]
[1729432892543,0.0008,68521.0,68520.0,0.072975]
[1729432895954,0.0004,68523.0,68520.0,0.3608]
[1729432896157,0.0004,68523.0,68522.0,0.072972]
[1729432896455,0.0002,68524.0,68523.0,0.072971]
[1729432902855,0.0002,68524.0,68523.0,0.09868762]
[1729432911869,0.0002,68524.0,68523.0,0.072971]
[1729432913374,0.07317,68524.0,68523.0,0.072971]
[1729432913964,0.072975,68520.0,68517.0,0.072977]
[1729432914270,0.0327,68519.0,68518.0,0.072977]
[1729432914476,0.0002,68524.0,68523.0,0.072971]
[1729432915357,0.361,68524.0,68523.0,0.072971]
[1729432915770,0.0002,68524.0,68523.0,0.072971]
[1729432915964,0.361,68524.0,68523.0,0.072971]
[1729432916368,0.0002,68524.0,68523.0,0.072971]
[1729432919165,0.0002,68524.0,68523.0,0.0987975]
[1729432921765,0.0002,68524.0,68523.0,0.072971]
[1729432934873,0.0002,68524.0,68523.0,0.11647727]
[1729432935073,0.0002,68524.0,68523.0,0.072971]
[1729432935285,0.0002,68524.0,68523.0,0.11647981]
[1729432935679,0.0002,68524.0,68523.0,0.11647907]
[1729432936888,0.0002,68524.0,68523.0,0.072971]
[1729432937388,0.0002,68524.0,68523.0,0.11647907]
[1729432938680,0.0002,68524.0,68523.0,0.072971]
[1729432940985,0.0002,68524.0,68523.0,0.11647907]
[1729432942388,0.0002,68524.0,68523.0,0.072971]
[1729432945280,0.0002,68524.0,68523.0,0.11650347]
[1729432946193,0.0002,68524.0,68523.0,0.072971]
[1729432948394,0.03594018,68524.0,68523.0,0.072971]
[1729432951284,0.03594018,68524.0,68519.0,0.09919602]
[1729432951492,0.3608,68520.0,68519.0,0.072975]
[1729432951683,0.46951518,68520.0,68519.0,0.072975]
[1729432953194,0.03574018,68520.0,68519.0,0.072975]
[1729432953401,0.072972,68523.0,68513.0,0.0304]
[1729432953695,0.03574193,68522.0,68521.0,0.072973]
[1729432953899,0.10871393,68522.0,68521.0,0.072973]
[1729432954192,0.072972,68522.0,68521.0,0.072973]
[1729432955188,0.072976,68520.0,68517.0,0.072977]
[1729432955691,0.392,68519.0,68518.0,0.072977]
[1729432955885,0.464976,68519.0,68518.0,0.072977]
[1729432956200,1.604176,68519.0,68518.0,0.072977]
[1729432958301,0.104176,68519.0,68518.0,0.072977]
[1729432961395,0.0312,68519.0,68518.0,0.072977]
[1729432962497,1.8608,68523.0,68518.0,0.072977]
[1729432962698,1.8608,68523.0,68522.0,0.072972]
[1729432963503,1.933771,68523.0,68522.0,0.072972]
[1729432965097,1.8608,68523.0,68522.0,0.072972]
[1729432965799,1.933771,68523.0,68522.0,0.072972]
[1729432968809,0.433771,68523.0,68522.0,0.072972]
[1729432970805,0.3608,68523.0,68522.0,0.072972]
[1729432972706,1.50096,68524.0,68523.0,0.072971]
[1729432972707,0.00096,68524.0,68523.0,0.072971]
[1729432972909,0.0002,68524.0,68523.0,0.072971]
[1729432974909,0.39674031,68524.0,68523.0,0.072971]
[1729432975114,0.361,68524.0,68523.0,0.072971]
[1729432975611,1.861,68524.0,68523.0,0.072971]
[1729432979332,1.93397,68524.0,68523.0,0.072971]
[1729432980223,1.861,68524.0,68523.0,0.072971]
[1729432986237,1.5002,68524.0,68523.0,0.072971]
[1729432988626,0.03594023,68524.0,68523.0,0.072971]
[1729432988830,0.0002,68524.0,68523.0,0.433771]
[1729432989531,0.0002,68524.0,68523.0,0.072971]
[1729432990037,0.0002,68524.0,68523.0,0.433771]
[1729432990243,0.0002,68524.0,68523.0,0.072971]
[1729432990633,0.0002,68524.0,68523.0,0.871571]
[1729432990939,0.0004,68527.0,68526.0,0.072968]
[1729432997135,1.5,68540.0,68526.0,0.072968]
[1729432997344,0.3612,68537.0,68536.0,0.072958]
[1729433014051,0.0004,68537.0,68536.0,0.072958]
[1729433018560,0.0002,68547.0,68546.0,0.072947]
[1729433020656,0.0002,68547.0,68541.0,0.3608]
[1729433020959,0.07295,68544.0,68542.0,0.072951]
[1729433021464,0.07295,68544.0,68541.0,0.3608]
[1729433021650,0.0002,68547.0,68546.0,0.072947]
[1729433021859,0.073146,68547.0,68546.0,0.072947]
[1729433023662,0.10887419,68547.0,68546.0,0.072947]
[1729433023958,0.10887393,68547.0,68546.0,0.072947]
[1729433024159,0.15365708,68547.0,68546.0,0.072947]
[1729433024558,0.10887393,68547.0,68546.0,0.072947]
[1729433024859,0.08071065,68547.0,68546.0,0.072947]
[1729433027462,0.03592793,68547.0,68546.0,0.072947]
[1729433030858,0.0002,68547.0,68546.0,1.110587]
[1729433031069,0.01460296,68568.0,68567.0,0.072925]
[1729433031256,0.072906,68585.0,68572.0,0.072919]
[1729433031452,0.3408,68589.0,68572.0,0.1154]
[1729433031667,0.072909,68582.0,68575.0,0.3608]
[1729433031967,0.3608,68583.0,68581.0,0.07291]
[1729433032173,0.3608,68607.0,68581.0,0.3608]
[1729433032356,0.3608,68607.0,68597.0,0.3608]
[1729433032558,0.3608,68613.0,68597.0,0.3608]
[1729433033359,0.3608,68613.0,68604.0,0.3608]
[1729433033763,0.3608,68613.0,68597.0,0.3608]
[1729433033764,0.3608,68607.0,68597.0,0.3608]
[1729433033963,0.3608,68607.0,68591.0,0.3608]
[1729433034173,0.0315,68612.0,68597.0,0.3608]
[1729433034683,0.0315,68612.0,68603.0,0.3608]
[1729433034972,0.0315,68612.0,68597.0,0.3608]
[1729433035561,0.0315,68612.0,68590.0,0.46103778]
[1729433035562,0.3608,68606.0,68590.0,0.38813778]
[1729433035768,0.3608,68606.0,68590.0,0.38681778]
[1729433036466,0.3608,68606.0,68599.0,0.3608]
[1729433038468,0.3608,68606.0,68590.0,0.435059]
[1729433038469,0.3608,68600.0,68590.0,0.435059]
[1729433038791,0.3608,68591.0,68583.0,0.00218537]
[1729433039161,0.0315,68590.0,68583.0,0.00218537]
[1729433039366,0.0315,68590.0,68584.0,0.072906]
[1729433039964,0.0315,68590.0,68583.0,0.00218537]
[1729433041666,0.3608,68591.0,68589.0,0.072901]
[1729433042266,0.3608,68600.0,68591.0,0.072898]
[1729433042473,0.3608,68600.0,68590.0,0.3608]
[1729433042669,0.3608,68600.0,68598.0,0.072891]
[1729433042977,0.0305,68604.0,68598.0,0.05022331]
[1729433043484,0.0305,68604.0,68600.0,0.072889]
[1729433044665,0.0305,68604.0,68596.0,0.3608]
[1729433045780,0.0305,68604.0,68594.0,0.072895]
[1729433045781,0.3608,68600.0,68594.0,0.072895]
[1729433047078,0.3608,68600.0,68588.0,0.02654441]
[1729433047272,0.3608,68600.0,68588.0,0.072901]
[1729433047582,0.3608,68600.0,68590.0,0.072899]
[1729433047883,0.3608,68600.0,68583.0,0.38949428]
[1729433048184,0.3608,68600.0,68591.0,0.3608]
[1729433048477,0.3608,68600.0,68598.0,0.072891]
[1729433049582,0.3608,68600.0,68591.0,0.3608]
[1729433049879,0.3608,68600.0,68593.0,0.072897]
[1729433052771,0.3608,68600.0,68584.0,0.072906]
[1729433052973,0.3608,68600.0,68594.0,0.072896]
[1729433054582,0.072893,68597.0,68588.0,0.072902]
[1729433054779,0.072893,68597.0,68583.0,0.36298537]
[1729433054780,0.3608,68591.0,68583.0,0.36298537]
[1729433055385,0.072901,68590.0,68583.0,0.36298537]
[1729433055585,0.3608,68591.0,68583.0,0.00218537]
[1729433055586,0.072903,68587.0,68583.0,0.00218537]
[1729433055888,0.0326,68586.0,68583.0,0.00218537]
[1729433057278,0.0326,68586.0,68584.0,0.072906]
[1729433060781,0.0326,68586.0,68583.0,0.00218537]
[1729433062784,0.105504,68586.0,68583.0,0.00218537]
[1729433063290,0.0326,68586.0,68583.0,0.00218537]
[1729433063988,0.3608,68585.0,68582.0,0.0004]